bitfinex/quotes_ETHUSD_20250529
["timestamp","ask_amount","ask_price","bid_price","bid_amount"]
[1748541405578,4.13644687,2659.3,2658.0,3.18455012]
[1748541405579,1.2384,2658.8,2658.3,3.76172657]
[1748541405783,1.2384,2658.8,2658.4,3.76158793]
[1748541406376,1.2384,2658.8,2658.1,10.0]
[1748541406377,1.73834274,2658.8,2658.3,3.76171411]
[1748541406545,1.73834274,2658.8,2658.2,10.0]
[1748541406749,3.76123669,2658.7,2658.0,13.76214411]
[1748541406935,3.76123669,2658.7,2658.0,16.11890492]
[1748541406936,3.76146883,2658.6,2658.0,16.11890492]
[1748541407140,3.76146883,2658.6,2658.1,10.0]
[1748541407340,3.7612765,2658.7,2658.0,13.76213461]
[1748541407554,1.2384,2658.8,2658.4,3.76162436]
[1748541407734,3.76124754,2658.7,2658.1,10.0]
[1748541408063,3.76130273,2658.7,2658.1,3.76201634]
[1748541408459,3.76130273,2658.7,2658.2,3.76186754]
[1748541408661,1.73834428,2658.8,2658.2,10.0]
[1748541408874,3.76155145,2658.5,2657.9,24.15695895]
[1748541409076,3.76155145,2658.5,2658.0,11.594655]
[1748541409387,3.76155145,2658.5,2658.1,10.0]
[1748541409539,1.2384,2658.8,2657.9,14.29967]
[1748541409741,3.76168869,2658.4,2657.9,10.0]
[1748541410151,3.76168869,2658.4,2658.0,10.0]
[1748541410371,3.76184766,2658.3,2657.9,20.763924]
[1748541410581,3.76172058,2658.4,2657.9,10.763924]
[1748541410786,3.76172058,2658.4,2657.9,3.839887]
[1748541410990,0.37615496,2658.5,2658.0,10.0]
[1748541411150,0.37615496,2658.5,2657.9,5.956727]
[1748541411479,0.37615496,2658.5,2657.8,5.01399318]
[1748541411480,3.76173545,2658.4,2657.8,3.76239318]
[1748541411787,4.90263637,2658.6,2658.1,10.0]
[1748541411969,4.90263637,2658.6,2658.2,10.0]
[1748541412167,4.90263637,2658.6,2658.0,3.76211127]
[1748541412168,4.90263637,2658.6,2658.3,10.0]
[1748541412369,1.1412,2658.6,2658.3,13.4232]
[1748541412570,1.1683,2658.9,2658.4,8.01250058]
[1748541412767,1.1683,2658.9,2658.5,3.76144876]
[1748541413085,3.76082735,2659.0,2658.3,3.76171305]
[1748541413242,3.76082735,2659.0,2658.5,10.494]
[1748541413447,1.1683,2659.2,2658.3,19.969358]
[1748541413660,3.76088598,2659.0,2658.6,12.971492]
[1748541413876,3.76088598,2659.0,2658.5,13.237192]
[1748541414859,3.76071442,2659.1,2658.6,12.971492]
[1748541415188,3.76084508,2659.0,2658.5,13.357192]
[1748541415558,1.1683,2659.2,2658.5,13.357192]
[1748541415784,1.2563,2658.7,2658.2,3.76187082]
[1748541416096,1.2563,2658.7,2658.4,3.562159]
[1748541416247,1.2563,2658.7,2658.4,2.218054]
[1748541416448,1.2563,2658.7,2658.4,2.226548]
[1748541416890,1.2563,2658.7,2658.2,13.76187316]
[1748541416891,5.01760782,2658.7,2658.2,25.826243]
[1748541417098,1.2563,2658.7,2658.1,7.475496]
[1748541417391,1.2563,2658.7,2658.3,2.71464]
[1748541417595,1.2563,2658.7,2658.1,8.1104783]
[1748541417596,5.01760329,2658.7,2658.1,8.1104783]
[1748541417794,5.01760449,2658.7,2658.3,10.0]
[1748541417964,1.2563,2658.7,2658.2,3.76191815]
[1748541418163,1.2563,2658.7,2658.3,3.76175853]
[1748541418389,1.2563,2658.7,2658.3,4.514115]
[1748541418551,1.2563,2658.7,2658.3,8.2758302]
[1748541418750,1.2563,2658.7,2658.3,3.7617152]
[1748541419553,1.2563,2658.7,2658.4,17.69047928]
[1748541419753,1.2563,2658.7,2658.3,3.76172841]
[1748541419986,1.2563,2658.7,2658.4,2.2357]
[1748541420152,1.2563,2658.7,2658.3,3.76172841]
[1748541420478,1.2563,2658.7,2658.4,3.111702]
[1748541420651,1.2563,2658.7,2658.2,10.0]
[1748541420891,1.2563,2658.7,2658.4,12.502172]
[1748541421139,1.2563,2658.7,2658.3,3.76178073]
[1748541421505,5.01759894,2658.7,2658.2,3.76185279]
[1748541421836,1.2563,2658.7,2658.3,15.98637821]
[1748541422140,1.2563,2658.7,2658.4,3.76162893]
[1748541422343,1.2042,2659.0,2658.7,3.76117746]
[1748541422498,1.2042,2659.0,2658.3,21.53123]
[1748541422694,1.2042,2659.0,2658.3,23.41371989]
[1748541422897,1.2042,2659.0,2658.3,1.88248989]
[1748541423153,1.2042,2659.3,2659.0,3.76074467]
[1748541423292,1.2042,2659.3,2658.6,10.0]
[1748541423293,3.76067635,2659.1,2658.6,13.76127032]
[1748541423498,1.2042,2659.3,2658.7,3.76122201]
[1748541423730,4.96465605,2659.3,2658.8,3.76107984]
[1748541424029,4.96465605,2659.3,2658.8,13.76107984]
[1748541424190,4.96465605,2659.3,2658.8,3.76107984]
[1748541424390,4.96465605,2659.3,2658.7,10.0]
[1748541424391,1.2042,2659.3,2658.7,10.0]
[1748541424615,1.2042,2659.3,2658.8,3.7610497]
[1748541424811,1.2042,2659.3,2658.7,33.96090796]
[1748541425122,3.76006956,2659.6,2659.2,4.69479]
[1748541425322,1.147,2659.9,2659.1,12.22747]
[1748541425323,3.7599045,2659.7,2659.1,12.22747]
[1748541425525,1.147,2659.9,2659.1,1.2374]
[1748541425830,3.75968875,2659.8,2659.3,3.76031125]
[1748541426040,3.75970441,2659.8,2659.3,3.76027469]
[1748541426211,1.3704,2659.9,2659.1,1.2374]
[1748541426410,1.3704,2659.9,2659.2,14.793372]
[1748541426411,1.147,2659.9,2659.2,14.793372]
[1748541426617,4.90656891,2659.9,2659.4,3.76019064]
[1748541426952,4.90660349,2659.9,2659.4,10.6167]
[1748541427121,4.90660349,2659.9,2659.4,3.76022138]
[1748541427516,4.90659978,2659.9,2659.3,14.34839676]
[1748541427751,4.90659978,2659.9,2659.4,13.76537]
[1748541427957,4.90659978,2659.9,2659.3,3.76024676]
[1748541427958,1.147,2659.9,2659.3,10.0]
[1748541428466,3.75975244,2659.8,2659.0,16.64163836]
[1748541428632,3.75975244,2659.8,2658.9,1.2299]
[1748541428633,1.147,2659.9,2659.3,11.9499]
[1748541428841,0.4906403,2659.8,2659.2,3.76043343]
[1748541429036,4.25041109,2659.8,2659.2,3.76041813]
[1748541429217,3.75977079,2659.8,2659.3,26.47737818]
[1748541429557,3.75977079,2659.8,2659.4,2.34437]
[1748541429719,3.7596901,2659.8,2659.3,12.48307]
[1748541430050,1.147,2659.9,2659.2,27.947029]
[1748541430255,1.147,2659.9,2659.6,3.75993962]
[1748541430842,1.147,2659.9,2659.4,3.76016208]
[1748541430843,1.147,2659.9,2659.5,3.76003568]
[1748541431042,1.147,2659.9,2659.6,10.0]
[1748541431246,1.147,2659.9,2659.4,10.0]
[1748541431548,1.147,2659.9,2659.3,3.76034382]
[1748541431549,1.147,2659.9,2659.3,10.0]
[1748541431751,1.147,2659.9,2659.0,5.233461]
[1748541432087,1.147,2659.9,2659.3,10.0]
[1748541432375,3.75996788,2659.6,2659.3,10.0]
[1748541432585,3.76005441,2659.6,2659.1,17.24740961]
[1748541432767,1.147,2659.9,2659.3,10.0]
[1748541433082,3.97,2659.8,2659.4,17.178172]
[1748541433379,1.147,2659.9,2659.4,17.178172]
[1748541433380,4.90661966,2659.9,2659.5,13.3921]
[1748541433681,4.90661966,2659.9,2659.6,10.0]
[1748541433867,3.75982332,2659.7,2659.4,25.108259]
[1748541434039,3.75982332,2659.7,2659.3,11.965614]
[1748541434238,3.76013713,2659.5,2659.0,13.76073669]
[1748541434577,3.75988686,2659.7,2659.3,11.584609]
[1748541434737,3.75968812,2659.8,2659.2,23.982749]
[1748541434934,3.75997805,2659.6,2659.2,10.522117]
[1748541435149,3.75997805,2659.6,2659.3,10.0]
[1748541435348,0.88756881,2659.8,2659.3,11.797317]
[1748541435566,3.75995406,2659.7,2659.1,10.0]
[1748541435857,3.75995406,2659.7,2659.2,3.76051544]
[1748541436056,3.76002844,2659.6,2659.0,23.616056]
[1748541436255,3.76002844,2659.6,2659.2,10.0]
[1748541436478,3.76002844,2659.6,2658.9,10.0]
[1748541436479,3.76035663,2659.4,2658.9,10.0]
[1748541436674,3.76075587,2659.1,2658.6,3.76134359]
[1748541437002,1.16,2659.0,2658.6,3.76134359]
[1748541437359,1.16,2659.0,2658.6,10.603095]
[1748541437560,1.16,2659.0,2658.3,1.1539]
[1748541437561,1.16,2659.0,2658.3,3.76174154]
[1748541437771,5.43341624,2659.0,2658.4,3.76158391]
[1748541437989,5.126,2659.0,2658.5,3.76139015]
[1748541438194,8.88682574,2659.0,2658.5,3.76139015]
[1748541438403,5.126,2659.0,2658.5,10.0]
[1748541438615,3.76097632,2658.9,2658.4,3.76152757]
[1748541438772,3.76097632,2658.9,2658.4,12.869391]
[1748541439102,3.76097632,2658.9,2658.4,2.869391]
[1748541439260,5.124,2659.0,2658.4,2.869391]
[1748541439461,3.76130547,2658.7,2658.4,2.869391]
[1748541439658,3.76114189,2658.8,2658.3,13.76178451]
[1748541439862,5.124,2659.0,2658.4,6.59046765]
[1748541439863,1.16,2659.0,2658.4,6.59046765]
[1748541440083,8.88382572,2659.0,2658.5,3.76151296]
[1748541440282,8.88382572,2659.0,2658.1,4.90644654]
[1748541440283,3.76103902,2658.9,2658.4,2.827899]
[1748541440484,3.76132327,2658.7,2658.2,13.163835]
[1748541440670,3.76132327,2658.7,2658.2,16.691771]
[1748541440876,3.76138523,2658.6,2658.1,10.0]
[1748541441207,1.1791,2658.6,2658.3,16.157393]
[1748541441408,1.2365,2658.8,2658.1,10.0]
[1748541441714,4.99767538,2658.8,2658.3,17.083303]
[1748541442009,3.76124813,2658.7,2658.4,3.729722]
[1748541442205,3.76124813,2658.7,2658.4,2.822552]
[1748541442405,3.76136881,2658.7,2658.1,3.7620425]
[1748541442706,3.76136881,2658.7,2658.3,10.0]
[1748541442910,4.99766531,2658.8,2658.3,3.288152]
[1748541443077,4.99766531,2658.8,2658.4,5.466352]
[1748541443275,4.99766531,2658.8,2658.3,29.48086155]
[1748541443276,4.9976084,2658.8,2658.3,29.48086155]
[1748541443486,4.99766636,2658.8,2658.3,2.377152]
[1748541443734,3.76130935,2658.7,2658.4,10.0]
[1748541443882,3.76130935,2658.7,2658.2,3.76184002]
[1748541443883,3.76130935,2658.7,2658.2,10.0]
[1748541444078,3.76158019,2658.5,2658.1,10.0]
[1748541444319,3.76143118,2658.6,2658.2,10.0]
[1748541444483,3.76143118,2658.6,2658.0,27.713292]
[1748541444684,3.76149041,2658.6,2658.0,17.713292]
[1748541444886,1.2365,2658.3,2657.9,14.274347]
[1748541445127,1.2365,2658.3,2658.0,3.870197]
[1748541445426,1.2365,2658.5,2657.7,6.58584137]
[1748541445586,1.2365,2658.5,2658.1,3.7620857]
[1748541445785,1.2365,2658.5,2657.8,10.0]
[1748541446026,1.2365,2658.5,2657.6,1.8737699]
[1748541446324,1.1689,2657.7,2657.0,3.83734994]
[1748541446675,1.1689,2657.7,2657.2,2.558896]
[1748541446888,1.1689,2657.7,2657.2,3.76324411]
[1748541447020,1.1689,2657.7,2657.4,10.0]
[1748541447222,1.1689,2657.7,2657.3,3.76313616]
[1748541447424,1.1689,2657.7,2657.3,12.944244]
[1748541447672,1.1689,2657.7,2657.4,10.0]
[1748541447823,1.1689,2657.7,2657.2,10.0]
[1748541448034,1.1689,2657.7,2657.5,17.26206234]
[1748541448223,1.2011,2658.0,2657.8,3.76240291]
[1748541448537,1.2011,2658.0,2657.6,3.565564]
[1748541448736,8.86767612,2658.4,2657.9,10.0]
[1748541448937,3.76209247,2658.1,2657.5,6.86695553]
[1748541449247,3.76209247,2658.1,2657.6,10.0]
[1748541449426,3.76209247,2658.1,2657.5,6.86695553]
[1748541449427,3.76209247,2658.1,2657.7,10.0]
[1748541449619,3.76200397,2658.2,2657.7,10.0]
[1748541449820,3.76200397,2658.2,2657.8,10.0]
[1748541450023,3.7621075,2658.1,2657.8,10.0]
[1748541450262,1.141,2658.0,2657.5,10.0]
[1748541450464,1.141,2658.0,2657.6,10.0]
[1748541450763,8.86626645,2658.0,2657.5,10.0]
[1748541450925,8.86626645,2658.0,2657.6,10.0]
[1748541451127,5.104,2658.0,2657.6,2.793491]
[1748541451624,5.104,2658.0,2657.6,3.76276813]
[1748541451864,5.104,2658.0,2657.5,13.76289224]
[1748541452167,3.762383,2657.9,2657.6,3.962491]
[1748541452370,5.104,2658.0,2657.5,8.12900727]
[1748541452523,5.104,2658.0,2657.7,10.0]
[1748541452724,3.76248565,2657.9,2657.4,10.0]
[1748541452952,1.1321,2658.3,2657.5,10.0]
[1748541453258,1.1321,2658.3,2657.8,3.76250701]
[1748541453438,8.85492403,2658.3,2657.8,3.76250701]
[1748541453639,3.76203165,2658.2,2657.7,10.0]
[1748541453824,3.76223486,2658.0,2657.7,10.0]
[1748541454022,4.88600127,2658.0,2657.6,13.746988]
[1748541454325,1.1237,2658.6,2657.7,3.825762]
[1748541454565,3.76197827,2658.2,2657.8,12.504732]
[1748541454869,3.76197853,2658.2,2657.8,10.0]
[1748541455170,3.76187264,2658.3,2657.9,2.164762]
[1748541456050,3.76180574,2658.3,2657.9,2.164762]
[1748541456572,3.76180574,2658.3,2657.9,10.0]
[1748541456861,3.76155759,2658.5,2657.9,2.549592]
[1748541456862,3.76173411,2658.4,2657.9,2.549592]
[1748541457020,4.62643328,2658.4,2657.9,2.549592]
[1748541457224,3.76181877,2658.3,2657.9,2.549592]
[1748541457456,0.86469917,2658.4,2657.8,3.76250063]
[1748541457457,3.7619458,2658.2,2657.8,10.0]
[1748541457659,1.17,2658.1,2657.5,10.0]
[1748541457865,1.17,2658.1,2657.5,4.072623]
[1748541458036,3.76245494,2657.9,2657.4,3.636602]
[1748541458238,5.44580555,2658.1,2657.2,4.98487196]
[1748541458239,3.76253386,2657.8,2657.5,10.0]
[1748541458539,1.1817,2657.7,2657.1,1.068]
[1748541458735,1.1817,2657.7,2657.3,2.725147]
[1748541458950,3.76279349,2657.6,2657.1,1.068]
[1748541459149,4.94437547,2657.7,2657.2,2.447672]
[1748541459150,1.1817,2657.7,2657.2,2.447672]
[1748541459664,4.94442179,2657.7,2657.2,4.977402]
[1748541460159,4.94442179,2657.7,2657.3,10.0]
[1748541460360,1.1817,2657.7,2657.3,13.76321066]
[1748541460562,3.76227305,2658.0,2657.3,13.76321066]
[1748541460563,8.87986736,2658.0,2657.3,3.76309601]
[1748541460736,5.1175,2658.0,2657.4,13.540513]
[1748541460940,5.1175,2658.0,2657.3,23.887865]
[1748541461135,5.1175,2658.0,2657.5,10.0]
[1748541461136,3.76243578,2657.9,2657.5,10.0]
[1748541461337,3.76243578,2657.9,2657.4,3.76294468]
[1748541461663,5.1175,2658.0,2657.2,10.0]
[1748541461871,3.76260354,2657.8,2657.3,3.7631848]
[1748541462031,1.1528,2657.7,2657.3,3.7632024]
[1748541462233,1.1528,2657.7,2657.4,4.435106]
[1748541462447,1.1528,2657.7,2657.3,3.7632024]
[1748541462448,1.1528,2657.7,2657.5,10.0]
[1748541462636,4.91547676,2657.7,2657.4,2.459396]
[1748541462834,1.1528,2657.7,2657.4,10.0]
[1748541463061,1.1528,2657.7,2657.4,2.469396]
[1748541463265,1.1528,2657.7,2657.3,10.0]
[1748541463266,3.76293508,2657.5,2657.3,10.0]
[1748541463440,3.76315395,2657.4,2657.0,0.30788004]
[1748541463645,3.963,2657.6,2657.0,0.30788004]
[1748541463866,3.76326397,2657.3,2657.0,0.30788004]
[1748541464165,3.963,2657.6,2657.0,0.30788004]
[1748541464166,3.76314756,2657.4,2657.0,0.30788004]
[1748541464336,7.72582548,2657.6,2657.0,0.30788004]
[1748541464529,3.963,2657.6,2657.0,0.30788004]
[1748541464730,3.76300936,2657.5,2657.0,4.071513]
[1748541465039,4.91553539,2657.7,2657.0,4.071513]
[1748541465040,8.87951165,2657.7,2657.0,4.0714528]
[1748541465234,3.76314606,2657.4,2657.0,0.30788004]
[1748541465832,9.76743929,2657.7,2657.0,0.30788004]
[1748541466066,3.76330426,2657.3,2657.0,0.30788004]
[1748541466280,3.76285537,2657.6,2657.1,7.424255]
[1748541466439,3.965,2657.5,2657.2,10.0]
[1748541466637,3.965,2657.5,2657.1,25.997389]
[1748541466881,3.965,2657.5,2657.2,10.0]
[1748541467076,3.76314185,2657.4,2657.2,10.0]
[1748541467233,7.72800248,2657.5,2657.0,0.30788004]
[1748541467430,1.1528,2657.7,2657.1,6.21546278]
[1748541467635,1.1528,2657.7,2657.1,2.452079]
[1748541467862,3.7627959,2657.6,2657.2,10.0]
[1748541468178,3.76293514,2657.5,2657.1,12.030989]
[1748541468330,3.76293514,2657.5,2657.2,10.0]
[1748541468536,4.91546069,2657.7,2657.1,10.0]
[1748541468537,1.1528,2657.7,2657.1,10.0]
[1748541468762,3.76288139,2657.6,2657.0,10.30788004]
[1748541468965,3.76306103,2657.5,2657.1,3.827589]
[1748541469830,3.76288139,2657.6,2657.1,3.827589]
[1748541470029,3.76295046,2657.5,2657.0,4.07144604]
[1748541470275,1.1559,2657.6,2657.2,10.0]
[1748541470447,1.1559,2657.6,2657.0,0.30788004]
[1748541470448,3.76315088,2657.4,2657.0,0.30788004]
[1748541470631,3.7630101,2657.5,2657.0,4.07152061]
[1748541470830,7.7230101,2657.5,2657.0,4.07152061]
[1748541471260,7.72297283,2657.5,2657.0,4.07145587]
[1748541471602,3.96,2657.5,2657.1,13.76344102]
[1748541472283,8.87576853,2657.6,2657.1,13.76344102]
[1748541472482,8.87581964,2657.6,2657.0,0.30788004]
[1748541472883,3.7630227,2657.5,2657.0,4.0715179]
[1748541473290,8.87570511,2657.6,2657.0,0.30788004]
[1748541473491,3.76300882,2657.5,2657.0,4.07151835]
[1748541473699,3.76319928,2657.4,2657.0,0.30788004]
[1748541473870,3.76331845,2657.3,2657.0,0.30788004]
[1748541474385,3.955,2657.4,2657.0,4.07143161]
[1748541474697,4.91877999,2657.6,2657.0,4.0714588]
[1748541474914,3.954,2657.5,2657.2,10.0]
[1748541475211,7.71694118,2657.5,2657.1,15.433029]
[1748541475365,7.71694118,2657.5,2657.2,10.0]
[1748541475566,1.1559,2657.6,2657.2,3.76333221]
[1748541475789,5.1099,2657.6,2657.1,15.366929]
[1748541475997,3.76316479,2657.4,2657.1,5.366929]
[1748541476220,5.1099,2657.6,2657.0,4.07145107]
[1748541476221,3.76301285,2657.5,2657.0,4.07145107]
[1748541476544,1.1273,2658.3,2657.5,10.0]
[1748541476828,1.1273,2658.3,2657.7,10.0]
[1748541477011,1.1273,2658.3,2657.9,3.76227046]
[1748541477208,1.1273,2658.3,2657.8,13.7624439]
[1748541477209,4.88913174,2658.3,2657.8,13.7624439]
[1748541477401,4.88913174,2658.3,2658.0,10.0]
[1748541477598,3.76215018,2658.1,2657.7,1.88715273]
[1748541477797,3.76198647,2658.2,2657.8,10.0]
[1748541477999,4.8891295,2658.3,2657.8,3.76249033]
[1748541478000,4.88917196,2658.3,2657.8,3.76249033]
[1748541478398,3.76194417,2658.2,2657.6,13.76265324]
[1748541478623,4.88914461,2658.3,2657.6,13.76265324]
[1748541478624,3.76239087,2657.9,2657.6,10.0]
[1748541478827,7.71954183,2658.5,2657.1,4.89758962]
[1748541478828,1.2082,2658.0,2657.1,4.89758962]
[1748541479129,3.76251034,2657.8,2657.2,10.0]
[1748541479331,3.76275889,2657.7,2657.3,10.0]
[1748541479631,3.76275889,2657.7,2657.2,3.76334029]
[1748541479831,3.76275889,2657.7,2657.2,3.76333951]
[1748541479832,3.76272205,2657.7,2657.2,3.76333951]
[1748541480185,3.76257276,2657.8,2657.3,3.76316283]
[1748541480390,3.76258667,2657.8,2657.2,3.76323767]
[1748541480707,7.72037103,2657.9,2657.4,3.76299029]
[1748541480708,7.72039272,2657.9,2657.4,3.76299029]
[1748541481478,3.7625953,2657.8,2657.3,3.76319457]
[1748541482514,3.76266397,2657.7,2657.2,13.76328825]
[1748541482714,3.76266397,2657.7,2657.2,3.76328825]
[1748541483182,1.2339,2657.8,2657.0,0.30788004]
[1748541483325,3.76301057,2657.5,2657.0,4.07150527]
[1748541484027,3.76265191,2657.7,2657.0,0.30788004]
[1748541484359,3.76287177,2657.6,2657.2,3.136069]
[1748541484531,3.76273846,2657.7,2657.2,6.89930968]
[1748541484737,1.2339,2657.8,2657.5,3.76289464]
[1748541484959,3.7620129,2658.2,2657.1,15.83672727]
[1748541485163,3.7622321,2658.0,2657.5,3.76283421]
[1748541485368,3.7622321,2658.0,2657.4,4.99929915]
[1748541485369,3.76247416,2657.9,2657.4,4.99929915]
[1748541485565,8.95576296,2658.1,2657.6,3.76276287]
[1748541485751,1.2436,2658.1,2657.5,18.692514]
[1748541485954,3.76229337,2658.0,2657.5,3.76287512]
[1748541486124,3.76229337,2658.0,2657.7,10.0]
[1748541486465,3.76229337,2658.0,2657.7,2.222]
[1748541486669,5.00577104,2658.1,2657.6,15.56518]
[1748541486869,1.2436,2658.1,2657.8,3.76242198]
[1748541487034,5.00574461,2658.1,2657.7,24.21371]
[1748541487234,1.2436,2658.1,2657.8,10.0]
[1748541487559,2.09529709,2658.1,2657.6,10.0]
[1748541487732,3.7627095,2657.7,2657.3,10.0]
[1748541487939,3.949,2657.8,2656.9,3.05523819]
[1748541488260,3.76304498,2657.5,2656.9,11.1789]
[1748541488559,3.76304498,2657.5,2657.0,4.07151779]
[1748541488761,1.1408,2657.9,2657.2,6.574683]
[1748541488933,1.1408,2657.9,2657.0,10.30788004]
[1748541488934,3.7628354,2657.6,2657.1,6.54012702]
[1748541489259,3.76280746,2657.6,2657.3,4.278591]
[1748541489462,3.76273083,2657.7,2657.4,10.0]
[1748541489626,3.76273083,2657.7,2657.2,3.7632899]
[1748541489627,3.76273083,2657.7,2657.3,4.278591]
[1748541489829,7.71356907,2657.8,2657.3,3.76314809]
[1748541490026,4.90323221,2657.9,2657.4,3.76304068]
[1748541490226,1.1408,2657.9,2657.5,3.76291233]
[1748541490561,1.1408,2657.9,2657.3,3.76317729]
[1748541490562,3.76251394,2657.8,2657.4,10.0]
[1748541490864,1.1408,2657.9,2657.3,18.43667]
[1748541491068,3.76214949,2658.1,2657.6,3.76268935]
[1748541491268,3.76214949,2658.1,2657.6,13.76268935]
[1748541491269,7.71214949,2658.1,2657.6,13.76268935]
[1748541491562,7.71214949,2658.1,2657.6,3.76268935]
[1748541491766,7.71096589,2658.2,2657.7,3.76251211]
[1748541491984,1.2129,2658.5,2657.6,1.88672727]
[1748541492128,3.76173524,2658.4,2657.9,3.76236519]
[1748541492327,3.76173524,2658.4,2657.7,3.76253803]
[1748541492328,3.76195453,2658.2,2657.7,13.76260519]
[1748541492737,3.76195453,2658.2,2657.9,10.0]
[1748541493074,3.76248672,2657.9,2657.6,10.0]
[1748541493228,1.2129,2658.3,2657.6,2.577159]
[1748541493427,3.7621625,2658.1,2657.6,3.76279023]
[1748541493639,3.7621625,2658.1,2657.5,10.0]
[1748541493640,3.76201075,2658.2,2657.7,10.82310647]
[1748541493852,3.76201075,2658.2,2657.5,13.76290238]
[1748541493853,3.76208585,2658.1,2657.9,10.0]
[1748541494171,3.76208585,2658.1,2657.8,5.788702]
[1748541494172,5.03056623,2658.1,2657.7,10.2508]
[1748541494485,8.92377478,2658.3,2657.9,10.0]
[1748541494644,3.76208983,2658.1,2657.8,10.0]
[1748541494969,3.76208983,2658.1,2657.6,3.76274878]
[1748541494970,3.76208983,2658.1,2657.7,9.4953]
[1748541495171,3.76201583,2658.2,2657.7,3.76263424]
[1748541495475,3.76224784,2658.0,2657.7,10.0]
[1748541495641,3.76216296,2658.1,2657.6,13.76279331]
[1748541495966,4.13128285,2658.2,2657.6,10.0]
[1748541495967,0.36930742,2658.2,2657.6,10.0]
[1748541496184,3.76211923,2658.1,2657.7,12.566989]
[1748541496385,0.36930742,2658.2,2657.8,10.0]
[1748541496386,3.76226128,2658.0,2657.8,10.0]
[1748541496574,3.76226128,2658.0,2657.6,13.670206]
[1748541497110,3.76246996,2657.9,2657.6,10.0]
[1748541497253,0.78936431,2658.0,2657.4,4.96839556]
[1748541497254,4.94715176,2657.8,2657.4,21.684688]
[1748541497590,1.1846,2657.8,2657.5,3.499256]
[1748541497886,7.70723302,2658.0,2657.6,10.0]
[1748541498047,7.70723302,2658.0,2657.5,3.76293508]
[1748541498241,8.78920348,2658.0,2657.5,3.76293508]
[1748541498692,3.76238757,2657.9,2657.4,13.76300381]
[1748541498891,8.78927104,2658.0,2657.5,3.76291679]
[1748541499199,8.78927104,2658.0,2657.6,3.76272908]
[1748541499200,5.02697046,2658.0,2657.6,3.76272908]
[1748541499402,8.78920846,2658.0,2657.5,3.76285421]
[1748541500195,8.70687481,2660.6,2657.9,3.76236878]
[1748541500196,1.1089,2658.6,2657.9,3.76236878]
[1748541500413,4.87031542,2658.6,2658.2,10.0]
[1748541500955,1.1089,2658.6,2657.9,10.0]
[1748541501164,3.76189247,2658.3,2658.0,10.0]
[1748541501359,4.51423368,2658.3,2658.0,10.0]
[1748541501563,3.76200816,2658.2,2657.9,10.0]
[1748541502298,3.76200816,2658.2,2657.7,4.91449205]
[1748541502299,3.76200816,2658.2,2657.8,10.0]
[1748541502704,3.76200816,2658.2,2657.9,10.0]
[1748541503003,4.51421683,2658.3,2657.9,2.406835]
[1748541503203,4.51421683,2658.3,2657.9,2.119144]
[1748541503513,4.51421683,2658.3,2657.9,2.677106]
[1748541503867,4.51421683,2658.3,2657.9,2.067141]
[1748541504604,4.58962825,2658.2,2657.8,22.705328]
[1748541504905,8.81634017,2658.1,2657.5,2.911967]
[1748541505108,3.76223196,2658.0,2657.6,19.254727]
[1748541505307,3.76229956,2658.0,2657.7,10.0]
[1748541505605,8.8163382,2658.1,2657.6,3.76275274]
[1748541505818,6.39477689,2658.1,2657.6,6.771904]
[1748541505981,10.15691279,2658.1,2657.6,3.76276818]
[1748541506194,6.39477689,2658.1,2657.6,13.76268101]
[1748541506392,10.15687526,2658.1,2657.6,19.202904]
[1748541506607,10.15687526,2658.1,2657.6,3.76272748]
[1748541506830,2.45577689,2658.1,2657.5,10.0]
[1748541507031,3.76179145,2658.4,2657.9,3.76228164]
[1748541507208,5.0991,2658.5,2657.6,1.87797852]
[1748541507403,3.76202266,2658.2,2657.8,10.0]
[1748541507601,3.76202266,2658.2,2657.7,3.76262977]
[1748541507602,4.51439247,2658.2,2657.7,3.76262977]
[1748541507784,0.75236981,2658.2,2657.7,3.76262977]
[1748541508005,4.51433328,2658.2,2657.6,10.0]
[1748541508349,1.189,2658.1,2657.6,3.76279349]
[1748541508506,1.189,2658.1,2657.8,10.0]
[1748541508845,1.189,2658.1,2657.7,26.756876]
[1748541509127,1.2205,2658.4,2658.1,3.76197719]
[1748541509330,1.2205,2658.4,2658.0,13.76222723]
[1748541509701,1.2205,2658.4,2658.0,10.0]
[1748541510231,4.98219182,2658.4,2658.0,10.0]
[1748541510631,4.98219182,2658.4,2657.9,11.88672727]
[1748541510931,1.223,2658.6,2658.3,1.88672727]
[1748541511091,1.06542331,2659.7,2658.3,3.05602727]
[1748541511092,1.223,2659.0,2658.3,3.05602727]
[1748541511304,1.223,2659.0,2658.7,7.06169715]
[1748541511643,0.44999225,2659.8,2658.7,7.06169715]
[1748541511644,4.89831677,2659.5,2659.0,16.50724]
[1748541511934,4.89831677,2659.5,2658.9,10.0]
[1748541511935,1.1382,2659.5,2658.9,10.0]
[1748541512150,1.1382,2659.3,2658.6,7.139655]
[1748541512348,1.1382,2659.3,2658.8,10.0]
[1748541512636,3.942,2659.5,2659.1,2.683093]
[1748541512637,4.88301809,2659.5,2659.1,2.683093]
[1748541512852,3.76028379,2659.4,2659.0,10.0]
[1748541513140,3.76024675,2659.4,2658.9,2.404518]
[1748541513293,3.76045829,2659.3,2658.9,11.35188]
[1748541513632,3.76032553,2659.4,2658.9,11.37058]
[1748541513820,8.82501516,2659.5,2658.9,11.37058]
[1748541513997,1.2585222,2659.4,2658.7,11.84353]
[1748541514201,8.82504595,2659.5,2658.8,3.7610152]
[1748541514397,3.76028962,2659.4,2658.7,10.593951]
[1748541514599,3.76062305,2659.2,2658.7,9.934135]
[1748541515131,3.76028962,2659.4,2658.6,3.941]
[1748541515132,3.76025578,2659.4,2658.6,3.941]
[1748541515434,8.82504423,2659.5,2658.9,3.76086698]
[1748541515596,1.25850989,2659.4,2658.9,3.76086698]
[1748541516014,5.01875904,2659.4,2658.8,13.76102524]
[1748541516299,5.01875904,2659.4,2658.9,15.84786519]
[1748541516525,5.01875904,2659.4,2658.9,14.06263]
[1748541516698,5.01875904,2659.4,2658.9,12.08692]
[1748541517100,3.7604175,2659.3,2658.8,10.8348]